fUST/lending_fUST_20250630
["ID","MTS","AMOUNT","RATE_DAILY","PERIOD"]
[368605577,1751230242545,-460.0,0.00019154,2]
[368605578,1751230242554,-460.0,0.00019154,2]
[368605579,1751230242564,-460.0,0.00019154,2]
[368605580,1751230242574,-1055.83,0.00019154,2]
[368605581,1751230242583,-460.0,0.00019155,2]
[368605582,1751230242594,-460.0,0.00019155,2]
[368605583,1751230242604,-504.41,0.00019155,2]
[368605584,1751230242614,-621.98,0.00019155,2]
[368605585,1751230242624,-460.0,0.00019155,2]
[368605586,1751230242634,-460.0,0.00019155,2]
[368605587,1751230242644,-839.52,0.00019155,2]
[368605588,1751230242654,-503.31,0.00019155,2]
[368605589,1751230242664,-460.0,0.00019155,2]
[368605590,1751230242674,-619.75,0.00019155,2]
[368605591,1751230242684,-4324.34,0.00019155,2]
[368605592,1751230242694,-1441.65,0.00019155,2]
[368605593,1751230242704,-460.0,0.00019155,2]
[368605594,1751230242714,-1304.03,0.00019156,2]
[368605595,1751230242724,-1695.2,0.00019156,2]
[368605596,1751230242734,-460.0,0.00019156,2]
[368605597,1751230242744,-1513.69,0.00019156,2]
[368605598,1751230242755,-588.15,0.00019157,2]
[368605599,1751230242765,-1041.0,0.00019157,2]
[368605600,1751230242774,-460.0,0.00019158,2]
[368605601,1751230242784,-630.61,0.00019158,2]
[368605602,1751230242794,-2574.04785148,0.00019165,2]
[368605603,1751230242806,-598.624722,0.00019178,2]
[368605604,1751230242816,-1041.0,0.00019183,2]
[368605605,1751230242826,-1471.63683534,0.00019203,2]
[368605606,1751230242835,-155.0,0.00019203,2]
[368605607,1751230242845,-1041.0,0.00019228,2]
[368605608,1751230242856,-1041.0,0.0001927,2]
[368605609,1751230242865,-1041.0,0.00019283,2]
[368605610,1751230242875,-151.0,0.00019288,2]
[368605611,1751230242886,-151.0,0.00019288,2]
[368605612,1751230242896,-151.0,0.00019288,2]
[368605613,1751230242906,-151.0,0.00019288,2]
[368605614,1751230242915,-500.0,0.00019288,2]
[368605616,1751230242925,-151.0,0.00019288,2]
[368605618,1751230242935,-151.0,0.00019288,2]
[368605619,1751230242945,-151.0,0.00019288,2]
[368605620,1751230242954,-151.0,0.00019288,2]
[368605621,1751230242963,-151.0,0.00019288,2]
[368605622,1751230242974,-151.0,0.00019288,2]
[368605623,1751230242983,-500.0,0.00019288,2]
[368605624,1751230242992,-500.0,0.00019294,2]
[368605626,1751230243003,-500.0,0.00019294,2]
[368605628,1751230243012,-500.0,0.00019294,2]
[368605629,1751230243022,-207.4,0.00019311,2]
[368605630,1751230243032,-5000.0,0.00019311,2]
[368605631,1751230243041,-782.17122709,0.00019311,2]
[368605632,1751230243051,-4940.34060657,0.00019314,2]
[368605633,1751230243061,-151.0,0.00019315,2]
[368605634,1751230243071,-198.0,0.00019315,2]
[368605635,1751230243080,-151.0,0.00019315,2]
[368605636,1751230243090,-151.0,0.00019315,2]
[368605637,1751230243100,-500.0,0.00019315,2]
[368605638,1751230243110,-151.0,0.00019315,2]
[368605639,1751230243119,-151.0,0.00019315,2]
[368605640,1751230243130,-151.0,0.00019315,2]
[368605641,1751230243139,-154.09503508,0.00019315,2]
[368605642,1751230243148,-151.0,0.00019315,2]
[368605643,1751230243158,-500.0,0.00019315,2]
[368605644,1751230243167,-122638.96360471,0.00019328,2]
[368605645,1751230243177,-57271.85862916,0.00019328,2]
[368605646,1751230243187,-500.0,0.00019328,2]
[368605647,1751230243197,-257.76110712,0.00019328,2]
[368605648,1751230243206,-500.0,0.00019328,2]
[368605649,1751230243215,-500.0,0.00019328,2]
[368605650,1751230243225,-390.28926115,0.00019328,2]
[368605651,1751230243235,-500.0,0.00019328,2]
[368605652,1751230243277,-500.0,0.00019328,2]
[368605653,1751230243287,-500.0,0.00019328,2]
[368605654,1751230243296,-500.0,0.00019328,2]
[368605655,1751230243306,-433.44947086,0.00019328,2]
[368605656,1751230243315,-500.0,0.00019328,2]
[368605657,1751230243324,-500.0,0.00019328,2]
[368605658,1751230243333,-500.0,0.00019328,2]
[368605659,1751230243343,-500.0,0.00019328,2]
[368605660,1751230243352,-500.0,0.00019328,2]
[368605661,1751230243361,-606.79608397,0.00019328,2]
[368605662,1751230243370,-500.0,0.00019328,2]
[368605663,1751230243379,-500.0,0.00019328,2]
[368605664,1751230243389,-500.0,0.00019328,2]
[368605665,1751230243398,-500.0,0.00019328,2]
[368605666,1751230243408,-500.0,0.00019328,2]
[368605667,1751230243417,-500.0,0.00019328,2]
[368605668,1751230243426,-174.243235,0.00019328,2]
[368605669,1751230243435,-482.63587906,0.00019328,2]
[368605670,1751230243445,-549.80599439,0.00019328,2]
[368605671,1751230243454,-500.0,0.00019328,2]
[368605672,1751230243463,-500.0,0.00019328,2]
[368605673,1751230243473,-500.0,0.00019328,2]
[368605674,1751230243483,-500.0,0.00019328,2]
[368605675,1751230243491,-500.0,0.00019328,2]
[368605676,1751230243501,-500.0,0.00019328,2]
[368605677,1751230243510,-500.0,0.00019328,2]
[368605678,1751230243520,-500.0,0.00019328,2]
[368605679,1751230243529,-500.0,0.00019328,2]
[368605680,1751230243539,-500.0,0.00019328,2]
[368605681,1751230243548,-151.0,0.00019329,2]
[368605682,1751230243557,-151.0,0.00019329,2]
[368605683,1751230243567,-151.0,0.00019329,2]
[368605684,1751230243576,-386.891437,0.00019329,2]
[368605685,1751230243586,-386.891437,0.00019329,2]
[368605686,1751230243595,-100000.0,0.00019329,2]
[368605687,1751230243604,-500.0,0.00019332,2]
[368605688,1751230243613,-500.0,0.00019339,2]
[368605689,1751230243623,-500.0,0.00019339,2]
[368605690,1751230243632,-198.83371723,0.00019343,2]
[368605691,1751230243641,-151.0,0.00019343,2]
[368605692,1751230243650,-151.0,0.00019343,2]
[368605693,1751230243660,-500.0,0.00019343,2]
[368605694,1751230243669,-198.0,0.00019343,2]
[368605695,1751230243678,-170.16222439,0.00019343,2]
[368605696,1751230243688,-151.0,0.00019343,2]
[368605697,1751230243697,-151.0,0.00019343,2]
[368605698,1751230243707,-500.0,0.00019343,2]
[368605699,1751230243716,-175.6042664,0.0001937,2]
[368605700,1751230243725,-151.0,0.0001937,2]
[368605701,1751230243734,-500.0,0.0001937,2]
[368605702,1751230243744,-198.0,0.0001937,2]
[368605703,1751230243753,-198.0,0.0001937,2]
[368605704,1751230243762,-500.0,0.0001937,2]
[368605705,1751230243771,-500.0,0.00019373,2]
[368605706,1751230243780,-500.0,0.00019373,2]
[368605707,1751230243790,-500.0,0.00019373,2]
[368605708,1751230243799,-500.0,0.00019373,2]
[368605709,1751230243812,-500.0,0.00019373,2]
[368605710,1751230243822,-500.0,0.00019373,2]
[368605711,1751230243831,-500.0,0.00019373,2]
[368605712,1751230243841,-500.0,0.00019373,2]
[368605713,1751230243850,-500.0,0.00019373,2]
[368605714,1751230243859,-500.0,0.00019373,2]
[368605715,1751230243869,-500.0,0.00019373,2]
[368605716,1751230243878,-379.00249616,0.00019373,2]
[368605717,1751230243888,-586.29415614,0.00019373,2]
[368605718,1751230243897,-500.0,0.00019373,2]
[368605719,1751230243906,-500.0,0.00019373,2]
[368605720,1751230243916,-430.50900453,0.00019373,2]
[368605721,1751230243925,-500.0,0.00019373,2]
[368605722,1751230243935,-500.0,0.00019373,2]
[368605723,1751230243945,-500.0,0.00019373,2]
[368605724,1751230243956,-500.0,0.00019373,2]
[368605725,1751230243966,-500.0,0.00019373,2]
[368605726,1751230243976,-500.0,0.00019373,2]
[368605727,1751230243987,-160.0,0.00019374,2]
[368605728,1751230243996,-160.0,0.00019374,2]
[368605729,1751230244006,-12567.05932091,0.00019374,2]
[368605730,1751230244015,-213.82031328,0.00019374,2]
[368605731,1751230244024,-230.30207649,0.00019374,2]
[368605732,1751230244034,-847.31290578,0.00019374,2]
[368605733,1751230244043,-214.97967293,0.00019374,2]
[368605734,1751230244053,-160.0,0.00019374,2]
[368605735,1751230244062,-160.0,0.00019374,2]
[368605736,1751230244072,-160.0,0.00019374,2]
[368605737,1751230244081,-160.0,0.00019374,2]
[368605738,1751230244091,-160.0,0.00019374,2]
[368605739,1751230244100,-837.1293463,0.00019374,2]
[368605740,1751230244110,-160.0,0.00019374,2]
[368605741,1751230244119,-245.0,0.00019398,2]
[368605742,1751230244130,-500.0,0.00019398,2]
[368605743,1751230244140,-302.0,0.00019398,2]
[368605744,1751230244150,-1300.76,0.00019427,2]
[368605745,1751230244159,-548.96,0.00019427,2]
[368605746,1751230244169,-2669.64,0.00019427,2]
[368605747,1751230244178,-460.0,0.00019427,2]
[368605748,1751230244188,-2871.13,0.00019427,2]
[368605749,1751230244197,-581.33,0.00019427,2]
[368605750,1751230244206,-504.3,0.00019427,2]
[368605751,1751230244216,-460.0,0.00019427,2]
[368605752,1751230244226,-3312.27,0.00019427,2]
[368605753,1751230244236,-2726.22,0.00019427,2]
[368605754,1751230244245,-3016.84,0.00019427,2]
[368605755,1751230244255,-460.0,0.00019427,2]
[368605756,1751230244264,-460.0,0.00019427,2]
[368605757,1751230244274,-520.82,0.00019427,2]
[368605758,1751230244284,-1538.42,0.00019427,2]
[368605759,1751230244293,-1985.43,0.00019427,2]
[368605760,1751230244303,-515.02,0.00019427,2]
[368605761,1751230244313,-1490.99,0.00019427,2]
[368605762,1751230244322,-460.0,0.00019427,2]
[368605763,1751230244332,-460.0,0.00019427,2]
[368605764,1751230244341,-529.49,0.00019427,2]
[368605765,1751230244350,-460.0,0.00019427,2]
[368605766,1751230244359,-460.0,0.00019428,2]
[368605767,1751230244368,-460.0,0.00019428,2]
[368605768,1751230244378,-460.0,0.00019428,2]
[368605769,1751230244388,-460.0,0.00019428,2]
[368605770,1751230244397,-1211.78,0.00019428,2]
[368605771,1751230244406,-460.0,0.00019428,2]
[368605772,1751230244416,-460.0,0.00019428,2]
[368605773,1751230244425,-824.24,0.00019428,2]
[368605774,1751230244434,-460.0,0.00019428,2]
[368605775,1751230244443,-553.06,0.00019428,2]
[368605776,1751230244453,-460.0,0.00019428,2]
[368605777,1751230244462,-530.53,0.00019428,2]
[368605778,1751230244471,-460.0,0.00019428,2]
[368605779,1751230244481,-1100.5,0.00019428,2]
[368605780,1751230244490,-502.99,0.00019428,2]
[368605781,1751230244500,-891.82,0.00019428,2]
[368605782,1751230244509,-460.0,0.00019428,2]
[368605783,1751230244519,-460.0,0.00019428,2]
[368605784,1751230244528,-796.58,0.00019428,2]
[368605785,1751230244538,-253.79801582,0.00019428,2]
[368605786,1751230244549,-581.0,0.00019428,2]
[368605787,1751230244559,-4058.09,0.00019428,2]
[368605788,1751230244569,-733.28,0.00019428,2]
[368605789,1751230244579,-801.21,0.00019428,2]
[368605790,1751230244588,-1408.45,0.00019428,2]
[368605791,1751230244597,-460.0,0.00019428,2]
[368605792,1751230244607,-423.53597,0.00019428,2]
[368605793,1751230244616,-460.0,0.00019428,2]
[368605794,1751230244626,-423.53597,0.00019428,2]
[368605795,1751230244636,-1055.83,0.00019428,2]
[368605796,1751230244646,-460.0,0.00019429,2]
[368605797,1751230244657,-460.0,0.00019429,2]
[368605798,1751230244668,-460.0,0.00019429,2]
[368605799,1751230244679,-504.41,0.00019429,2]
[368605800,1751230244689,-621.98,0.00019429,2]
[368605801,1751230244700,-460.0,0.00019429,2]
[368605802,1751230244710,-839.52,0.00019429,2]
[368605803,1751230244720,-503.31,0.00019429,2]
[368605804,1751230244729,-460.0,0.00019429,2]
[368605805,1751230244739,-619.75,0.00019429,2]
[368605806,1751230244748,-4324.34,0.00019429,2]
[368605807,1751230244759,-1441.65,0.00019429,2]
[368605808,1751230244769,-460.0,0.00019429,2]
[368605809,1751230244778,-460.0,0.0001943,2]
[368605810,1751230244788,-1304.03,0.0001943,2]
[368605811,1751230244798,-1695.2,0.0001943,2]
[368605812,1751230244812,-460.0,0.0001943,2]
[368605813,1751230244822,-151.0,0.0001943,2]
[368605814,1751230244832,-1513.69,0.0001943,2]
[368605815,1751230244841,-223.618972,0.0001943,2]
[368605816,1751230244853,-223.618972,0.0001943,2]
[368605817,1751230244863,-151.0,0.0001943,2]
[368605818,1751230244872,-588.15,0.00019431,2]
[368605819,1751230244883,-151.0,0.00019431,2]
[368605820,1751230244893,-151.0,0.00019431,2]
[368605821,1751230244902,-151.0,0.00019431,2]
[368605822,1751230244912,-460.0,0.00019432,2]
[368605823,1751230244922,-630.61,0.00019432,2]
[368605824,1751230244932,-151.0,0.00019457,2]
[368605825,1751230244942,-151.0,0.00019457,2]
[368605826,1751230244952,-151.0,0.00019457,2]
[368605827,1751230244962,-151.0,0.00019457,2]
[368605828,1751230244972,-151.0,0.00019457,2]
[368605829,1751230244982,-500.0,0.00019464,2]
[368605830,1751230244992,-462.90287057,0.00019481,2]
[368605831,1751230245002,-500.0,0.0001951,2]
[368605832,1751230245012,-500.0,0.0001951,2]
[368605833,1751230245022,-4940.34060657,0.00019521,2]
[368605834,1751230245032,-1041.0,0.00019532,2]
[368605835,1751230245042,-153.0,0.00019534,2]
[368605836,1751230245052,-153.0,0.00019534,2]
[368605837,1751230245062,-171.8798239,0.00019534,2]
[368605838,1751230245072,-153.0,0.00019534,2]
[368605839,1751230245082,-355.68245325,0.00019535,2]
[368605840,1751230245092,-603.0,0.00019569,2]
[368605841,1751230245101,-1471.63683534,0.00019623,2]
[368605842,1751230245111,-603.0,0.00019632,2]
[368605843,1751230245121,-193.96505387,0.0001964,2]
[368605844,1751230245131,-1300.76,0.00019701,2]
[368605845,1751230245140,-548.96,0.00019701,2]
[368605846,1751230245151,-2669.64,0.00019701,2]
[368605847,1751230245160,-460.0,0.00019701,2]
[368605848,1751230245171,-2871.13,0.00019701,2]
[368605849,1751230245181,-581.33,0.00019701,2]
[368605850,1751230245190,-504.3,0.00019701,2]
[368605851,1751230245200,-460.0,0.00019701,2]
[368605852,1751230245210,-3312.27,0.00019701,2]
[368605853,1751230245221,-2726.22,0.00019701,2]
[368605854,1751230245231,-3016.84,0.00019701,2]
[368605855,1751230245240,-460.0,0.00019701,2]
[368605856,1751230245250,-460.0,0.00019701,2]
[368605857,1751230245260,-1538.42,0.00019701,2]
[368605858,1751230245270,-520.82,0.00019701,2]
[368605859,1751230245279,-1985.43,0.00019701,2]
[368605860,1751230245289,-515.02,0.00019701,2]
[368605861,1751230245298,-1490.99,0.00019701,2]
[368605862,1751230245308,-460.0,0.00019701,2]
[368605863,1751230245318,-460.0,0.00019701,2]
[368605864,1751230245328,-529.49,0.00019701,2]
[368605865,1751230245338,-460.0,0.00019701,2]
[368605866,1751230245348,-460.0,0.00019702,2]
[368605867,1751230245358,-460.0,0.00019702,2]
[368605868,1751230245368,-460.0,0.00019702,2]
[368605869,1751230245378,-460.0,0.00019702,2]
[368605870,1751230245388,-1211.78,0.00019702,2]
[368605871,1751230245398,-460.0,0.00019702,2]
[368605872,1751230245408,-460.0,0.00019702,2]
[368605873,1751230245417,-824.24,0.00019702,2]
[368605874,1751230245427,-460.0,0.00019702,2]
[368605875,1751230245436,-553.06,0.00019702,2]
[368605876,1751230245446,-500.79525707,0.00019702,2]
[368605877,1751230245455,-530.53,0.00019702,2]
[368605878,1751230245465,-460.0,0.00019702,2]
[368605879,1751230245475,-1100.5,0.00019702,2]
[368605880,1751230245484,-502.99,0.00019702,2]
[368605881,1751230245494,-891.82,0.00019702,2]
[368605882,1751230245504,-460.0,0.00019702,2]
[368605883,1751230245514,-460.0,0.00019702,2]
[368605884,1751230245524,-796.58,0.00019702,2]
[368605885,1751230245534,-581.0,0.00019702,2]
[368605886,1751230245543,-4058.09,0.00019702,2]
[368605887,1751230245553,-733.28,0.00019702,2]
[368605888,1751230245563,-801.21,0.00019702,2]
[368605889,1751230245573,-1408.45,0.00019702,2]
[368605890,1751230245582,-460.0,0.00019702,2]
[368605891,1751230245592,-460.0,0.00019702,2]
[368605892,1751230245602,-1055.83,0.00019702,2]
[368605893,1751230245612,-460.0,0.00019703,2]
[368605894,1751230245621,-460.0,0.00019703,2]
[368605895,1751230245631,-460.0,0.00019703,2]
[368605896,1751230245640,-504.41,0.00019703,2]
[368605897,1751230245650,-621.98,0.00019703,2]
[368605898,1751230245660,-839.52,0.00019703,2]
[368605899,1751230245669,-503.31,0.00019703,2]
[368605900,1751230245679,-535.69,0.00019703,2]
[368605901,1751230245688,-619.75,0.00019703,2]
[368605902,1751230245698,-4324.34,0.00019703,2]
[368605903,1751230245707,-1441.65,0.00019703,2]
[368605904,1751230245716,-193.867146,0.00019703,2]
[368605905,1751230245726,-460.0,0.00019703,2]
[368605906,1751230245736,-193.867146,0.00019703,2]
[368605907,1751230245746,-277.238445,0.00019704,2]
[368605908,1751230245757,-151.0,0.00019704,2]
[368605909,1751230245766,-151.0,0.00019704,2]
[368605910,1751230245776,-159.748146,0.00019704,2]
[368605911,1751230245786,-219.47229,0.00019704,2]
[368605912,1751230245796,-151.0,0.00019704,2]
[368605913,1751230245808,-219.47229,0.00019704,2]
[368605914,1751230245818,-1304.03,0.00019704,2]
[368605915,1751230245828,-1695.2,0.00019704,2]
[368605916,1751230245837,-287.384468,0.00019704,2]
[368605917,1751230245847,-287.384468,0.00019704,2]
[368605918,1751230245857,-460.0,0.00019704,2]
[368605919,1751230245866,-1513.69,0.00019704,2]
[368605920,1751230245875,-588.15,0.00019705,2]
[368605921,1751230245885,-603.0,0.00019705,2]
[368605922,1751230245896,-460.0,0.00019706,2]
[368605923,1751230245905,-630.61,0.00019706,2]
[368605925,1751230245915,-151.0,0.0001971,2]
[368605926,1751230245926,-151.0,0.0001971,2]
[368605928,1751230245935,-151.0,0.0001971,2]
[368605930,1751230245945,-386.891437,0.0001971,2]
[368605931,1751230245955,-386.891437,0.0001971,2]
[368605932,1751230245964,-4940.34060657,0.00019728,2]
[368605933,1751230245976,-151.0,0.000198,2]
[368605934,1751230245986,-511.5142067,0.00019841,2]
[368605935,1751230245995,-451.73620084,0.00019841,2]
[368605936,1751230246005,-5000.0,0.00019859,2]
[368605937,1751230246016,-151.0,0.00019861,2]
[368605938,1751230246026,-1000.0,0.0001988,2]
[368605939,1751230246035,-1000.0,0.00019887,2]
[368605940,1751230246045,-10329.0,0.000199,2]
[368605941,1751230246055,-151.0,0.000199,2]
[368605942,1751230246064,-1003.12234392,0.00019921,2]
[368605943,1751230246074,-1000.0,0.00019921,2]
[368605944,1751230246083,-1000.0,0.00019921,2]
[368605945,1751230246093,-1000.0,0.00019921,2]
[368605946,1751230246103,-1031.97906164,0.00019921,2]
[368605947,1751230246112,-1000.0,0.00019921,2]
[368605948,1751230246122,-1000.0,0.00019921,2]
[368605949,1751230246131,-1000.0,0.00019921,2]
[368605950,1751230246141,-1000.0,0.00019921,2]
[368605951,1751230246151,-1000.0,0.00019921,2]
[368605952,1751230246160,-500.0,0.00019921,2]
[368605953,1751230246170,-1000.0,0.00019921,2]
[368605954,1751230246180,-1000.0,0.00019921,2]
[368605955,1751230246189,-1000.0,0.00019921,2]
[368605956,1751230246199,-4940.34060657,0.00019934,2]
[368605957,1751230246209,-560.0,0.00019969,3]
[368605958,1751230246219,-1300.76,0.00019975,2]
[368605959,1751230246229,-548.96,0.00019975,2]
[368605960,1751230246238,-2669.64,0.00019975,2]
[368605961,1751230246247,-2871.13,0.00019975,2]
[368605962,1751230246257,-581.33,0.00019975,2]
[368605963,1751230246267,-504.3,0.00019975,2]
[368605964,1751230246276,-460.0,0.00019975,2]
[368605965,1751230246286,-3312.27,0.00019975,2]
[368605966,1751230246295,-2726.22,0.00019975,2]
[368605967,1751230246307,-3016.84,0.00019975,2]
[368605968,1751230246317,-460.0,0.00019975,2]
[368605969,1751230246328,-460.0,0.00019975,2]
[368605970,1751230246338,-1538.42,0.00019975,2]
[368605971,1751230246347,-520.82,0.00019975,2]
[368605972,1751230246357,-1985.43,0.00019975,2]
[368605973,1751230246367,-515.02,0.00019975,2]
[368605974,1751230246376,-1490.99,0.00019975,2]
[368605975,1751230246386,-377.83,0.00019975,2]
[368605976,1751230246395,-460.0,0.00019975,2]
[368605977,1751230246404,-529.49,0.00019975,2]
[368605978,1751230246414,-460.0,0.00019975,2]
[368605979,1751230246423,-460.0,0.00019976,2]
[368605980,1751230246433,-460.0,0.00019976,2]
[368605981,1751230246443,-1201.000652,0.00019976,2]
[368605982,1751230246452,-1201.000652,0.00019976,2]
[368605983,1751230246462,-151.0,0.00019976,2]
[368605984,1751230246472,-396.24,0.00019976,2]
[368605985,1751230246482,-460.0,0.00019976,2]
[368605986,1751230246491,-1211.78,0.00019976,2]
[368605987,1751230246501,-460.0,0.00019976,2]
[368605988,1751230246511,-824.24,0.00019976,2]
[368605989,1751230246521,-460.0,0.00019976,2]
[368605990,1751230246530,-553.06,0.00019976,2]
[368605991,1751230246540,-530.53,0.00019976,2]
[368605992,1751230246549,-460.0,0.00019976,2]
[368605993,1751230246559,-1100.5,0.00019976,2]
[368605994,1751230246569,-502.99,0.00019976,2]
[368605995,1751230246578,-891.82,0.00019976,2]
[368605996,1751230246588,-460.0,0.00019976,2]
[368605997,1751230246597,-460.0,0.00019976,2]
[368605998,1751230246607,-796.58,0.00019976,2]
[368605999,1751230246617,-581.0,0.00019976,2]
[368606000,1751230246626,-4058.09,0.00019976,2]
[368606001,1751230246635,-733.28,0.00019976,2]
[368606002,1751230246644,-801.21,0.00019976,2]
[368606003,1751230246654,-1408.45,0.00019976,2]
[368606004,1751230246663,-460.0,0.00019976,2]
[368606005,1751230246673,-367.94,0.00019976,2]
[368606006,1751230246684,-1055.83,0.00019976,2]
[368606007,1751230246696,-460.0,0.00019977,2]
[368606008,1751230246706,-595.12,0.00019977,2]
[368606009,1751230246716,-460.0,0.00019977,2]
[368606010,1751230246725,-504.41,0.00019977,2]
[368606011,1751230246735,-621.98,0.00019977,2]
[368606012,1751230246744,-839.52,0.00019977,2]
[368606013,1751230246755,-503.31,0.00019977,2]
[368606014,1751230246765,-619.75,0.00019977,2]
[368606015,1751230246775,-4324.34,0.00019977,2]
[368606016,1751230246784,-1441.65,0.00019977,2]
[368606017,1751230246794,-460.0,0.00019977,2]
[368606018,1751230246807,-423.53597,0.00019977,2]
[368606019,1751230246818,-423.53597,0.00019977,2]
[368606020,1751230246829,-1304.03,0.00019978,2]
[368606021,1751230246839,-1695.2,0.00019978,2]
[368606022,1751230246850,-460.0,0.00019978,2]
[368606023,1751230246861,-1513.69,0.00019978,2]
[368606024,1751230246871,-588.15,0.00019979,2]
[368606025,1751230246882,-630.61,0.0001998,2]
[368606026,1751230246892,-420.0,0.00019993,2]
[368606027,1751230246902,-300.0,0.0002,2]
[368606028,1751230246912,-300.0,0.0002,2]
[368606029,1751230247058,-1471.63683534,0.00020042,2]
[368606030,1751230247068,-1958.56518753,0.00020047,2]
[368606031,1751230247078,-502.25919006,0.00020058,2]
[368606032,1751230247088,-1000.0,0.00020058,2]
[368606033,1751230247098,-151.0,0.00020082,2]
[368606034,1751230247109,-223.618972,0.00020082,2]
[368606035,1751230247118,-223.618972,0.00020082,2]
[368606036,1751230247128,-151.0,0.00020082,2]
[368606037,1751230247138,-366.235562,0.00020082,2]
[368606038,1751230247147,-366.235562,0.00020082,2]
[368606039,1751230247157,-366.235562,0.00020082,2]
[368606040,1751230247166,-366.235562,0.00020082,2]
[368606041,1751230247176,-365.3274888,0.00020082,2]
[368606042,1751230247186,-151.0,0.000201,4]
[368606043,1751230247195,-4940.34060657,0.00020141,2]
[368606044,1751230247204,-415.670011,0.00020187,2]
[368606045,1751230247214,-1300.76,0.00020249,2]
[368606046,1751230247224,-548.96,0.00020249,2]
[368606047,1751230247234,-2669.64,0.00020249,2]
[368606048,1751230247243,-151.0,0.00020249,2]
[368606049,1751230247252,-151.0,0.00020249,2]
[368606050,1751230247261,-2871.13,0.00020249,2]
[368606051,1751230247270,-581.33,0.00020249,2]
[368606052,1751230247280,-151.0,0.00020249,2]
[368606053,1751230247289,-504.3,0.00020249,2]
[368606054,1751230247299,-460.0,0.00020249,2]
[368606055,1751230247308,-3312.27,0.00020249,2]
[368606056,1751230247318,-2726.22,0.00020249,2]
[368606057,1751230247327,-3016.84,0.00020249,2]
[368606058,1751230247337,-460.0,0.00020249,2]
[368606059,1751230247347,-460.0,0.00020249,2]
[368606060,1751230247356,-151.0,0.00020249,2]
[368606061,1751230247366,-151.0,0.00020249,2]
[368606062,1751230247375,-1538.42,0.00020249,2]
[368606063,1751230247385,-520.82,0.00020249,2]
[368606064,1751230247395,-1985.43,0.00020249,2]
[368606065,1751230247405,-515.02,0.00020249,2]
[368606066,1751230247415,-1490.99,0.00020249,2]
[368606067,1751230247424,-460.0,0.00020249,2]
[368606068,1751230247434,-529.49,0.00020249,2]
[368606069,1751230247443,-460.0,0.00020249,2]
[368606070,1751230247453,-460.0,0.0002025,2]
[368606071,1751230247464,-460.0,0.0002025,2]
[368606072,1751230247473,-460.0,0.0002025,2]
[368606073,1751230247483,-1211.78,0.0002025,2]
[368606074,1751230247492,-460.0,0.0002025,2]
[368606075,1751230247502,-824.24,0.0002025,2]
[368606076,1751230247511,-460.0,0.0002025,2]
[368606077,1751230247521,-553.06,0.0002025,2]
[368606078,1751230247531,-530.53,0.0002025,2]
[368606079,1751230247540,-460.0,0.0002025,2]
[368606080,1751230247549,-1100.5,0.0002025,2]
[368606081,1751230247559,-151.0,0.0002025,2]
[368606082,1751230247568,-274.97182,0.0002025,2]
[368606083,1751230247578,-502.99,0.0002025,2]